bitfinex-derivatives/quotes_BTCF0:USTF0_20230901
["timestamp","ask_amount","ask_price","bid_price","bid_amount"]
[1693605148537,1.006884,25779.0,25778.0,0.498982]
[1693605150639,1.426584,25779.0,25778.0,0.498982]
[1693605152637,1.426584,25779.0,25778.0,0.353431]
[1693605154244,1.426584,25779.0,25778.0,0.20788]
[1693605155836,1.426584,25779.0,25778.0,1.32616119]
[1693605159142,1.426584,25779.0,25778.0,1.32228119]
[1693605159937,1.426584,25779.0,25778.0,0.204]
[1693605165348,1.426584,25779.0,25778.0,0.054]
[1693605165739,1.726584,25779.0,25778.0,0.054]
[1693605166454,1.746584,25779.0,25778.0,0.054]
[1693605171846,1.726584,25779.0,25778.0,0.054]
[1693605173548,1.88162884,25779.0,25778.0,0.054]
[1693605174454,1.90162884,25779.0,25778.0,0.054]
[1693605175249,1.88162884,25779.0,25778.0,0.054]
[1693605177060,1.20387,25777.0,25776.0,0.1597]
[1693605177360,2.205794,25777.0,25776.0,1.2781005]
[1693605178253,2.209794,25777.0,25776.0,1.2911005]
[1693605178853,2.213794,25777.0,25776.0,1.3271005]
[1693605179969,2.213794,25777.0,25776.0,0.2087]
[1693605181050,2.209924,25777.0,25776.0,0.2087]
[1693605184053,2.36487744,25777.0,25776.0,0.2087]
[1693605184563,2.209924,25777.0,25776.0,0.2087]
[1693605190365,2.24039378,25777.0,25776.0,0.2087]
[1693605191360,2.39534722,25777.0,25776.0,0.2087]
[1693605192167,2.39534722,25777.0,25776.0,0.354261]
[1693605192970,1.16487744,25777.0,25776.0,0.61291877]
[1693605193364,1.009924,25777.0,25776.0,0.61291877]
[1693605194263,1.009924,25777.0,25776.0,1.73133987]
[1693605195573,1.16487744,25777.0,25776.0,1.73133987]
[1693605195878,1.16487744,25777.0,25776.0,1.98627901]
[1693605196071,1.01932144,25777.0,25776.0,2.00627901]
[1693605196873,0.4277,25777.0,25776.0,2.15184001]
[1693605197177,0.29109,25779.0,25776.0,2.57154001]
[1693605197374,0.59157544,25780.0,25777.0,1.41840759]
[1693605197574,0.59155444,25781.0,25779.0,0.00388]
[1693605197776,0.30048144,25782.0,25780.0,1.92304801]
[1693605197974,0.30048144,25782.0,25781.0,1.1184211]
[1693605198277,0.57465344,25782.0,25781.0,1.94302401]
[1693605198771,0.4197,25782.0,25781.0,2.36272401]
[1693605198974,0.4427,25782.0,25781.0,2.36472401]
[1693605199972,0.4607,25782.0,25781.0,2.36672401]
[1693605200373,0.4427,25782.0,25781.0,2.36472401]
[1693605200568,0.4467,25782.0,25781.0,2.38172401]
[1693605201272,0.4257,25782.0,25781.0,2.40872401]
[1693605201978,0.4237,25782.0,25781.0,2.37972401]
[1693605202176,0.4267,25782.0,25781.0,2.41672401]
[1693605203370,0.4267,25782.0,25781.0,2.39972401]
[1693605203680,0.4267,25782.0,25781.0,2.44756586]
[1693605205274,0.4237,25782.0,25781.0,2.41056586]
[1693605205481,0.4267,25782.0,25781.0,2.44756586]
[1693605208582,0.863278,25782.0,25781.0,2.30203386]
[1693605208785,0.863278,25782.0,25781.0,1.77295572]
[1693605209583,0.863278,25782.0,25781.0,1.88233386]
[1693605210186,0.863278,25782.0,25781.0,1.77295572]
[1693605211177,0.860278,25782.0,25781.0,1.73595572]
[1693605211382,0.863278,25782.0,25781.0,1.77295572]
[1693605211584,0.863278,25782.0,25781.0,1.75295572]
[1693605211982,1.028804,25782.0,25781.0,1.1724211]
[1693605214479,1.028804,25782.0,25781.0,0.054]
[1693605214681,1.028804,25782.0,25781.0,1.17220525]
[1693605216081,1.028804,25782.0,25781.0,0.054]
[1693605231405,1.18375744,25782.0,25781.0,0.054]
[1693605235005,1.16375744,25782.0,25781.0,0.054]
[1693605237394,1.18375744,25782.0,25781.0,0.054]
[1693605237605,1.028804,25782.0,25781.0,0.054]
[1693605242308,1.2224958,25782.0,25781.0,0.054]
[1693605247501,1.028804,25782.0,25781.0,0.054]
[1693605248909,1.008804,25782.0,25781.0,0.199531]
[1693605249114,1.008804,25782.0,25781.0,0.384531]
[1693605249609,1.20244463,25782.0,25781.0,0.89806791]
[1693605250015,1.05691863,25782.0,25781.0,0.89806791]
[1693605251016,1.05691863,25782.0,25781.0,0.78868977]
[1693605251908,1.05691863,25782.0,25781.0,0.89806791]
[1693605252219,1.05691863,25782.0,25781.0,0.78868977]
[1693605252517,1.05691863,25782.0,25781.0,0.89806791]
[1693605253102,1.05691863,25782.0,25781.0,0.78868977]
[1693605253501,0.863278,25782.0,25781.0,0.78868977]
[1693605253712,1.05698125,25782.0,25781.0,0.675593]
[1693605253912,1.20250725,25782.0,25781.0,0.675593]
[1693605254416,1.008804,25782.0,25781.0,0.675593]
[1693605255815,1.2024672,25782.0,25781.0,0.675593]
[1693605257413,1.008804,25782.0,25781.0,0.675593]
[1693605257614,1.20246871,25782.0,25781.0,0.675593]
[1693605259320,1.20246871,25782.0,25781.0,0.530062]
[1693605261021,1.008804,25782.0,25781.0,0.510062]
[1693605261213,1.008804,25782.0,25781.0,0.530062]
[1693605261721,1.008804,25782.0,25781.0,0.510062]
[1693605262618,1.008804,25782.0,25781.0,0.364531]
[1693605265026,1.008804,25782.0,25781.0,0.219]
[1693605268229,2.208804,25782.0,25781.0,0.219]
[1693605269726,2.44125582,25782.0,25781.0,0.219]
[1693605270029,2.208804,25782.0,25781.0,0.219]
[1693605270229,2.44125582,25782.0,25781.0,0.219]
[1693605271035,2.208804,25782.0,25781.0,0.219]
[1693605297167,1.2,25778.0,25776.0,0.07760718]
[1693605297366,1.2,25775.0,25774.0,0.07760718]
[1693605297558,2.42856879,25775.0,25774.0,1.19611614]
[1693605297753,2.23514774,25775.0,25773.0,0.1655]
[1693605298067,1.19537247,25774.0,25773.0,0.1655]
[1693605298250,1.001976,25774.0,25773.0,0.1655]
[1693605299169,1.005976,25774.0,25773.0,0.1945]
[1693605299466,1.16055611,25774.0,25773.0,0.1945]
[1693605300462,1.16455611,25774.0,25773.0,0.1945]
[1693605301052,1.009976,25774.0,25773.0,0.1945]
[1693605301252,1.16455024,25774.0,25773.0,0.1945]
[1693605302260,1.009976,25774.0,25773.0,0.1945]
[1693605302768,1.009976,25774.0,25773.0,0.029]
[1693605302769,2.06455024,25774.0,25773.0,0.029]
[1693605304563,1.909976,25774.0,25773.0,0.029]
[1693605309865,1.94182595,25774.0,25773.0,0.029]
[1693605315870,1.2,25770.0,25768.0,0.14948]
[1693605316174,1.78239,25770.0,25769.0,1.26429349]
[1693605316371,2.20209,25770.0,25769.0,1.28429349]
[1693605316874,2.20609,25770.0,25769.0,1.28429349]
[1693605317071,2.21009,25770.0,25769.0,1.28429349]
[1693605317369,2.20609,25770.0,25769.0,1.28429349]
[1693605317565,2.21009,25770.0,25769.0,1.28429349]
[1693605317765,2.21009,25770.0,25769.0,1.28629349]
[1693605319169,2.21009,25770.0,25769.0,1.43769349]
[1693605320562,0.718894,25770.0,25769.0,1.58329149]
[1693605320775,0.4197,25773.0,25769.0,2.14858949]
[1693605320970,0.856387,25776.0,25772.0,0.4197]
[1693605321269,0.856387,25776.0,25775.0,0.436692]
[1693605321270,0.710823,25776.0,25775.0,0.436692]
[1693605321573,1.2,25777.0,25775.0,0.436692]
[1693605321574,0.30009624,25783.0,25775.0,1.24443091]
[1693605321775,0.145517,25784.0,25780.0,0.4197]
[1693605321776,0.15457424,25784.0,25780.0,0.4197]
[1693605321976,0.145508,25785.0,25783.0,0.4197]
[1693605321977,0.57427424,25785.0,25783.0,0.4197]
[1693605322172,0.57427424,25785.0,25784.0,0.80452691]
[1693605322478,0.4197,25785.0,25784.0,0.71143014]
[1693605323373,0.4197,25785.0,25784.0,0.69143014]
[1693605324276,0.4217,25785.0,25784.0,0.71343014]
[1693605324673,0.4217,25785.0,25784.0,0.82652691]
[1693605324871,0.4197,25785.0,25784.0,1.22422691]
[1693605325175,0.4217,25785.0,25784.0,1.24622691]
[1693605325978,0.4257,25785.0,25784.0,1.28222691]
[1693605327577,0.4257,25785.0,25784.0,1.30222691]
[1693605328869,0.4217,25785.0,25784.0,1.26622691]
[1693605329073,0.4257,25785.0,25784.0,1.30222691]
[1693605329274,0.006,25785.0,25784.0,1.30222691]
[1693605329980,0.008,25785.0,25784.0,1.31522691]
[1693605330286,1.45618,25788.0,25784.0,1.31522691]
[1693605330287,1.165191,25788.0,25784.0,1.31522691]
[1693605330476,0.4197,25788.0,25786.0,0.42358]
[1693605330672,0.290977,25789.0,25788.0,0.00388]
[1693605330986,0.145488,25789.0,25788.0,1.13104214]
[1693605331285,0.145488,25789.0,25788.0,1.24413891]
[1693605331882,0.290963,25790.0,25788.0,1.24413891]
[1693605332078,0.290963,25790.0,25789.0,0.64605491]
[1693605332275,0.436447,25790.0,25789.0,1.08250991]
[1693605332976,0.450447,25790.0,25789.0,1.08250991]
[1693605333576,0.450447,25790.0,25789.0,1.08450991]
[1693605334081,0.466447,25790.0,25789.0,1.08550991]
[1693605334279,0.468447,25790.0,25789.0,1.09850991]
[1693605334683,0.442447,25790.0,25789.0,1.13150991]
[1693605335083,0.442447,25790.0,25789.0,1.01841314]
[1693605335882,0.442447,25790.0,25789.0,1.13150991]
[1693605336083,0.440447,25790.0,25789.0,1.11850991]
[1693605336387,0.444447,25790.0,25789.0,1.15450991]
[1693605337089,0.864147,25790.0,25789.0,0.73480991]
[1693605340784,0.864147,25790.0,25789.0,0.62543177]
[1693605341794,0.864147,25790.0,25789.0,0.73480991]
[1693605342799,0.718663,25790.0,25789.0,0.88029591]
[1693605344601,0.718663,25790.0,25789.0,1.31999591]
[1693605344602,0.008,25790.0,25789.0,1.31999591]
[1693605344795,0.7814,25796.0,25794.0,0.00388]
[1693605345104,0.290875,25798.0,25795.0,1.22398291]
[1693605345396,0.02,25798.0,25797.0,0.4197]
[1693605345598,0.165435,25798.0,25797.0,1.00146]
[1693605346299,0.310871,25798.0,25797.0,1.00146]
[1693605346697,0.313871,25798.0,25797.0,1.00346]
[1693605346896,0.313871,25798.0,25797.0,1.22593491]
[1693605347292,0.003,25798.0,25797.0,1.26293491]
[1693605347501,0.003,25798.0,25797.0,1.28293491]
[1693605348495,0.005,25798.0,25797.0,1.30893491]
[1693605353305,0.7814,25803.0,25797.0,1.30893491]
[1693605353605,1.346479,25808.0,25803.0,0.727035]
[1693605353809,1.346479,25808.0,25807.0,0.581536]
[1693605353810,0.44357,25808.0,25807.0,0.581536]
[1693605354001,0.44357,25808.0,25807.0,0.80401091]
[1693605354199,0.4197,25810.0,25807.0,1.36909491]
[1693605354512,0.02,25810.0,25809.0,1.005072]
[1693605354700,0.02,25810.0,25809.0,1.001192]
[1693605354904,0.02,25810.0,25809.0,1.005072]
[1693605355215,0.855759,25813.0,25809.0,1.22754691]
[1693605355413,0.459929,25813.0,25812.0,0.4197]
[1693605355707,0.459929,25813.0,25812.0,1.07824291]
[1693605356116,0.02,25813.0,25812.0,1.22747891]
[1693605356611,0.16535,25813.0,25812.0,1.22747891]
[1693605356908,1.072082,25815.0,25813.0,0.00388]
[1693605357113,1.072082,25815.0,25814.0,1.00108]
[1693605357114,1.092082,25815.0,25814.0,1.00108]
[1693605357314,1.092082,25815.0,25814.0,1.22355491]
[1693605358013,0.310682,25815.0,25814.0,1.22355491]
[1693605359015,0.313682,25815.0,25814.0,1.22655491]
[1693605359319,0.313682,25815.0,25814.0,1.22855491]
[1693605360316,0.459023,25815.0,25814.0,1.11917677]
[1693605360909,0.459023,25815.0,25814.0,1.08320991]
[1693605362408,0.459023,25815.0,25814.0,0.97383177]
[1693605362808,0.459023,25815.0,25814.0,0.860735]
[1693605364017,0.459023,25815.0,25814.0,0.71539]
[1693605365120,0.459023,25815.0,25814.0,0.570045]
[1693605365604,0.604364,25815.0,25814.0,0.4247]
[1693605365803,0.584364,25815.0,25814.0,0.4247]
[1693605366009,0.604364,25815.0,25814.0,0.4247]
[1693605369712,0.584364,25815.0,25814.0,0.4247]
[1693605369915,0.604364,25815.0,25814.0,0.4247]
[1693605370618,0.584364,25815.0,25814.0,0.4247]
[1693605374314,0.439023,25815.0,25814.0,0.82848477]
[1693605374620,0.003,25815.0,25814.0,0.99382877]
[1693605374811,0.003,25815.0,25814.0,1.10320691]
[1693605375011,0.003,25815.0,25814.0,1.24855091]
[1693605380925,0.003,25815.0,25814.0,1.22855091]
[1693605381126,0.003,25815.0,25814.0,1.24855091]
[1693605387731,0.148339,25815.0,25814.0,1.26002438]
[1693605389925,0.003,25815.0,25814.0,1.28002438]
[1693605395934,0.003,25815.0,25814.0,1.26002438]
[1693605396138,0.003,25815.0,25814.0,1.28002438]
[1693605397741,0.15637475,25815.0,25814.0,1.28002438]
[1693605398440,0.003,25815.0,25814.0,1.28002438]
[1693605398836,0.15761607,25815.0,25814.0,1.28002438]
[1693605399341,0.15761607,25815.0,25814.0,1.26002438]
[1693605401943,0.003,25815.0,25814.0,1.26002438]
[1693605402131,0.15761607,25815.0,25814.0,1.26002438]
[1693605404641,0.003,25815.0,25814.0,1.26002438]
[1693605405435,0.19471843,25815.0,25814.0,1.26002438]
[1693605405642,0.003,25815.0,25814.0,1.26002438]
[1693605406243,0.15770254,25815.0,25814.0,1.50239459]
[1693605406541,0.003,25815.0,25814.0,1.50239459]
[1693605406741,0.003,25815.0,25814.0,1.26002438]
[1693605406938,0.19471843,25815.0,25814.0,1.26002438]
[1693605407540,0.19471843,25815.0,25814.0,1.50239919]
[1693605408045,0.19471843,25815.0,25814.0,1.26002438]
[1693605408544,0.19471843,25815.0,25814.0,1.5024006]
[1693605409538,0.003,25815.0,25814.0,1.5024006]
[1693605412335,0.19640633,25815.0,25814.0,1.5024006]
[1693605412551,0.003,25815.0,25814.0,1.5024006]
[1693605413941,0.19643162,25815.0,25814.0,1.5024006]
[1693605419448,0.003,25815.0,25814.0,1.5024006]
[1693605429159,0.003,25815.0,25814.0,1.8024006]
[1693605429358,0.19644502,25815.0,25814.0,1.8024006]
[1693605431160,0.003,25815.0,25814.0,1.8024006]
[1693605431460,0.602109,25820.0,25814.0,1.8024006]
[1693605431461,0.19340573,25819.0,25818.0,0.00387]
[1693605431763,0.1623,25820.0,25818.0,1.39255622]
[1693605431964,0.02,25820.0,25819.0,0.66207622]
[1693605432264,0.02,25820.0,25819.0,1.46581513]
[1693605432462,0.1597,25822.0,25819.0,1.46581513]
[1693605432661,0.1797,25822.0,25821.0,0.4197]
[1693605432857,0.1797,25822.0,25821.0,1.24329622]
[1693605433058,0.15468003,25822.0,25821.0,1.78577113]
[1693605433257,0.15468436,25823.0,25821.0,2.53008785]
[1693605433458,1.30405186,25828.0,25822.0,0.66207622]
[1693605433459,0.15457461,25824.0,25822.0,0.66207622]
[1693605433765,0.290535,25828.0,25824.0,0.42357]
[1693605433966,0.145267,25828.0,25827.0,0.4197]
[1693605434167,0.145267,25828.0,25827.0,1.000784]
[1693605434466,0.145267,25828.0,25827.0,1.22325891]
[1693605435166,0.145267,25828.0,25827.0,1.22625891]
[1693605435961,0.145267,25828.0,25827.0,1.22925891]
[1693605436161,0.290534,25828.0,25827.0,1.22925891]
[1693605437374,0.445498,25829.0,25827.0,1.22925891]
[1693605437662,0.465498,25829.0,25828.0,0.64604491]
[1693605437865,0.465498,25829.0,25828.0,1.22710891]
[1693605437866,0.17497,25829.0,25828.0,1.22710891]
[1693605439166,0.17497,25829.0,25828.0,1.23010891]
[1693605439863,0.15497,25829.0,25828.0,1.23010891]
[1693605440169,0.15497,25829.0,25828.0,1.23310891]
[1693605444865,0.145233,25834.0,25832.0,0.4197]
[1693605445066,0.1641,25834.0,25833.0,1.000648]
[1693605445267,0.149087,25835.0,25833.0,1.000648]
[1693605445571,0.1641,25834.0,25833.0,0.580948]
[1693605445762,0.1641,25834.0,25833.0,1.000648]
[1693605446171,0.1641,25834.0,25833.0,1.22612291]
[1693605446869,0.294317,25835.0,25833.0,1.003648]
[1693605447074,0.314317,25835.0,25834.0,1.000628]
[1693605447462,0.314317,25835.0,25834.0,1.22310291]
[1693605448470,0.314317,25835.0,25834.0,1.22610291]
[1693605448976,0.314317,25835.0,25834.0,1.22910291]
[1693605449676,0.294317,25835.0,25834.0,1.22910291]
[1693605452072,0.294317,25835.0,25834.0,1.006628]
[1693605453166,0.294317,25835.0,25834.0,1.11600614]
[1693605453374,0.439545,25835.0,25834.0,1.006628]
[1693605454583,0.439545,25835.0,25834.0,0.861396]
[1693605455572,0.439545,25835.0,25834.0,0.97449277]
[1693605456174,0.439545,25835.0,25834.0,0.861396]
[1693605457185,0.439545,25835.0,25834.0,0.97449277]
[1693605457382,0.439545,25835.0,25834.0,1.08387091]
[1693605457685,0.439545,25835.0,25834.0,0.97449277]
[1693605457878,0.439545,25835.0,25834.0,0.861396]
[1693605458073,0.459545,25835.0,25834.0,0.861396]
[1693605459882,0.604773,25835.0,25834.0,0.716164]
[1693605460184,0.604773,25835.0,25834.0,0.570932]
[1693605462083,0.604773,25835.0,25834.0,0.716164]
[1693605462691,0.459543,25835.0,25834.0,0.716164]
[1693605463293,0.439543,25835.0,25834.0,0.716164]
[1693605465693,0.439543,25835.0,25834.0,0.861396]
[1693605465893,0.294315,25835.0,25834.0,1.11972477]
[1693605467495,0.294315,25835.0,25834.0,1.22910291]
[1693605468393,0.294315,25835.0,25834.0,1.11972477]
[1693605470793,0.294315,25835.0,25834.0,1.006628]
[1693605472111,0.294315,25835.0,25834.0,1.11972477]
[1693605473603,0.294315,25835.0,25834.0,1.006628]
[1693605474907,0.294315,25835.0,25834.0,1.11972477]
[1693605477910,0.294315,25835.0,25834.0,1.22910291]
[1693605478309,0.294315,25835.0,25834.0,1.006628]
[1693605481300,0.294315,25835.0,25834.0,1.11972477]
[1693605481504,0.294315,25835.0,25834.0,1.22910291]
[1693605481704,0.294315,25835.0,25834.0,1.11972477]
[1693605482007,0.294315,25835.0,25834.0,1.22910291]
[1693605482310,0.294315,25835.0,25834.0,1.11972477]
[1693605483207,0.15755601,25835.0,25834.0,1.11972477]
[1693605485014,0.15755601,25835.0,25834.0,1.006628]
[1693605485515,0.00386,25835.0,25834.0,1.006628]
[1693605486407,0.19596435,25835.0,25834.0,1.11972477]
[1693605487008,0.19596435,25835.0,25834.0,1.006628]
[1693605487315,0.00386,25835.0,25834.0,1.006628]
[1693605489210,0.1973368,25835.0,25834.0,1.11600614]
[1693605489411,0.00386,25835.0,25834.0,1.006628]
[1693605492018,0.00386,25835.0,25834.0,1.11600614]
[1693605492215,0.00386,25835.0,25834.0,1.006628]
[1693605492414,0.23559752,25835.0,25834.0,1.24885155]
[1693605492824,0.00386,25835.0,25834.0,1.24885155]
[1693605493020,0.00386,25835.0,25834.0,1.36194832]
[1693605493317,0.00386,25835.0,25834.0,1.47132646]
[1693605493522,0.23559752,25835.0,25834.0,1.36194832]
[1693605493822,0.23623904,25835.0,25834.0,1.24885007]
[1693605494218,0.00386,25835.0,25834.0,1.24885007]
[1693605494418,0.23623904,25835.0,25834.0,1.24885007]
[1693605495015,0.38146704,25835.0,25834.0,1.24885007]
[1693605496324,0.20516755,25835.0,25834.0,1.24885007]
[1693605497226,0.35039555,25835.0,25834.0,1.24885007]
[1693605500827,0.52671725,25835.0,25834.0,1.24885007]
[1693605501026,0.294316,25835.0,25834.0,1.24885007]
[1693605504935,0.48781738,25835.0,25834.0,1.24885007]
[1693605507436,0.90751738,25835.0,25834.0,1.24885007]
[1693605511434,0.714016,25835.0,25834.0,1.24885007]
[1693605511634,0.90743516,25835.0,25834.0,1.24885007]
[1693605513332,0.90743516,25835.0,25834.0,0.82915007]
[1693605515936,1.05266316,25835.0,25834.0,0.82915007]
[1693605517344,0.63296316,25835.0,25834.0,0.82915007]
[1693605518837,0.439544,25835.0,25834.0,0.82915007]
[1693605519436,0.63292306,25835.0,25834.0,0.82915007]
[1693605520145,1.05262306,25835.0,25834.0,0.82915007]
[1693605526651,0.859244,25835.0,25834.0,0.82915007]
[1693605534549,1.05268303,25835.0,25834.0,0.82915007]
[1693605543758,1.05268303,25835.0,25834.0,0.68391807]
[1693605544059,1.024472,25835.0,25834.0,0.24822207]
[1693605544259,1.2566964,25835.0,25834.0,0.24822207]
[1693605544461,1.2,25832.0,25829.0,0.303258]
[1693605544661,0.581,25831.0,25830.0,0.24223348]
[1693605544850,1.1862,25831.0,25830.0,0.24223348]
[1693605545449,1.1862,25831.0,25829.0,0.14526]
[1693605545654,0.00386,25829.0,25828.0,0.294399]
[1693605545866,0.42356,25829.0,25828.0,0.294399]
[1693605546162,1.004604,25829.0,25828.0,0.294401]
[1693605546462,1.024604,25829.0,25828.0,0.145264]
[1693605546664,1.024604,25829.0,25827.0,0.448537]
[1693605546864,0.57454595,25828.0,25827.0,0.290537]
[1693605547066,1.01034695,25828.0,25827.0,0.290537]
[1693605547251,1.03034695,25828.0,25827.0,0.290537]
[1693605547451,1.17561395,25828.0,25827.0,0.145267]
[1693605548057,1.17761395,25828.0,25827.0,0.146267]
[1693605548257,1.022768,25828.0,25827.0,0.146267]
[1693605548467,1.177539,25828.0,25827.0,0.146267]
[1693605548764,1.025768,25828.0,25827.0,0.003]
[1693605549355,1.17750045,25828.0,25827.0,0.001]
[1693605549558,1.18050045,25828.0,25827.0,0.004]
[1693605549764,1.21934953,25828.0,25827.0,0.004]
[1693605550161,1.21934953,25828.0,25827.0,0.003]
[1693605551160,1.025768,25828.0,25827.0,0.004]
[1693605551963,1.025768,25828.0,25827.0,0.003]
[1693605552471,1.2190449,25828.0,25827.0,0.003]
[1693605554368,1.025768,25828.0,25827.0,0.003]
[1693605555071,1.2190449,25828.0,25827.0,0.003]
[1693605555277,1.025768,25828.0,25827.0,0.003]
[1693605556473,1.18027181,25828.0,25827.0,0.003]
[1693605556773,1.025768,25828.0,25827.0,0.003]
[1693605565978,1.62356,25825.0,25822.0,0.296099]
[1693605566184,0.4197,25823.0,25822.0,0.02]
[1693605566377,1.00088,25823.0,25822.0,0.1705]
[1693605566585,1.00088,25823.0,25822.0,1.2869137]
[1693605567390,1.00088,25823.0,25822.0,1.3239137]
[1693605567785,1.00088,25823.0,25822.0,1.3039137]
[1693605567995,1.00088,25823.0,25822.0,1.3239137]
[1693605568287,1.00088,25823.0,25822.0,1.3449137]
[1693605568785,1.00088,25823.0,25822.0,1.3249137]
[1693605568986,1.01174,25823.0,25822.0,1.3069137]
[1693605569185,1.01474,25823.0,25822.0,1.2709137]
[1693605570387,1.01474,25823.0,25822.0,0.1545]
[1693605571885,1.01474,25823.0,25822.0,0.004]
[1693605573496,1.00774,25823.0,25822.0,0.001]
[1693605573693,1.01274,25823.0,25822.0,0.004]
[1693605573996,2.21274,25823.0,25822.0,0.004]
[1693605574693,2.81274,25823.0,25822.0,0.004]
[1693605578391,3.11274,25823.0,25822.0,0.004]
[1693605580495,3.14448634,25823.0,25822.0,0.004]
[1693605601717,3.29899015,25823.0,25822.0,0.004]
[1693605601919,3.14448634,25823.0,25822.0,0.004]
[1693605603321,3.33776324,25823.0,25822.0,0.004]
[1693605603716,3.33776324,25823.0,25820.0,0.1646]
[1693605603912,0.57448623,25821.0,25820.0,0.1646]
[1693605604117,1.000924,25821.0,25820.0,0.1646]
[1693605604421,1.15571023,25821.0,25820.0,0.1646]
[1693605604721,1.15571023,25821.0,25820.0,0.1676]
[1693605605317,1.15571023,25821.0,25820.0,0.1686]
[1693605605624,1.16371023,25821.0,25820.0,0.1666]
[1693605605817,1.16757023,25821.0,25820.0,0.1656]
[1693605606023,1.2,25819.0,25818.0,0.1612]
[1693605606331,2.5011091,25819.0,25818.0,0.1812]
[1693605606514,2.346285,25819.0,25818.0,0.02]
[1693605607010,2.501185,25819.0,25818.0,0.02]
[1693605607209,0.4197,25817.0,25815.0,0.37594053]
[1693605607416,0.4197,25817.0,25816.0,1.11666736]
[1693605607630,1.275384,25817.0,25816.0,1.11666736]
[1693605607920,1.275384,25817.0,25816.0,1.13666736]
[1693605608320,1.420712,25817.0,25816.0,1.13666736]
[1693605608718,1.429712,25817.0,25816.0,1.13866736]
[1693605609119,1.429712,25817.0,25816.0,1.36966989]
[1693605609418,1.433712,25817.0,25816.0,1.36966989]
[1693605611525,1.424712,25817.0,25816.0,1.36766989]
[1693605611825,1.431712,25817.0,25816.0,1.36866989]
[1693605613316,1.431712,25817.0,25816.0,1.29126736]
[1693605613524,1.431712,25817.0,25816.0,1.36866989]
[1693605613726,1.431712,25817.0,25816.0,1.29126736]
[1693605614225,1.141056,25817.0,25816.0,1.83665275]
[1693605614524,0.4307,25817.0,25816.0,2.09808955]
[1693605614721,0.15483408,25820.0,25816.0,2.05758632]
[1693605614922,0.4197,25819.0,25818.0,0.73048]
[1693605615132,0.3781,25819.0,25818.0,1.98325941]
[1693605615315,0.710304,25822.0,25818.0,2.62543432]
[1693605615514,0.710304,25822.0,25821.0,0.58122]
[1693605615721,0.4197,25822.0,25821.0,0.79168503]
[1693605615920,0.4197,25822.0,25821.0,2.01751257]
[1693605616125,0.0884,25822.0,25821.0,2.05624811]
[1693605616327,0.0643,25822.0,25821.0,2.05624811]
[1693605616527,0.4197,25825.0,25821.0,2.35984431]
[1693605616723,0.4197,25825.0,25824.0,0.08121318]
[1693605617021,0.4197,25826.0,25824.0,1.24735318]
[1693605617226,0.4197,25826.0,25825.0,0.22247491]
[1693605617426,0.4197,25826.0,25825.0,0.82360691]
[1693605617629,0.4197,25826.0,25825.0,1.93991029]
[1693605618523,0.4197,25826.0,25825.0,1.97691029]
[1693605619526,0.4197,25826.0,25825.0,2.01391029]
[1693605623232,0.4197,25826.0,25825.0,1.99391029]
[1693605623533,0.4197,25826.0,25825.0,2.01391029]
[1693605626225,0.4197,25826.0,25825.0,1.99391029]
[1693605631050,0.564977,25826.0,25825.0,1.99391029]
[1693605632750,0.710254,25826.0,25825.0,1.99391029]
[1693605633749,0.290554,25826.0,25825.0,2.41361029]
[1693605643668,0.453554,25826.0,25825.0,2.41361029]
[1693605654263,0.453554,25826.0,25825.0,2.49095347]
[1693605656868,0.453554,25826.0,25825.0,2.41361029]
[1693605657873,0.453554,25826.0,25825.0,2.52962506]
[1693605659776,0.453554,25826.0,25825.0,2.82480161]
[1693605660875,0.453554,25826.0,25825.0,2.67951861]
[1693605661268,0.598831,25826.0,25825.0,2.67951861]
[1693605661967,0.598831,25826.0,25825.0,2.52471354]
[1693605662374,0.598831,25826.0,25825.0,2.67967407]
[1693605663676,0.453554,25826.0,25825.0,2.82495707]
[1693605668669,0.453554,25826.0,25825.0,2.56857082]
[1693605668879,0.453554,25826.0,25825.0,2.41361029]
[1693605669377,0.453554,25826.0,25825.0,2.82495461]
[1693605670772,0.453554,25826.0,25825.0,2.56857082]
[1693605671876,0.453554,25826.0,25825.0,2.41361029]
[1693605672666,0.163,25826.0,25825.0,2.41361029]
[1693605674880,0.308277,25826.0,25825.0,2.41361029]
[1693605677276,0.46311108,25826.0,25825.0,2.52984839]
[1693605677783,0.60838808,25826.0,25825.0,2.52984839]
[1693605682786,0.60814118,25826.0,25825.0,2.52985931]
[1693605684393,0.453554,25826.0,25825.0,2.41361029]
[1693605690295,0.453554,25826.0,25825.0,2.56860898]
[1693605692397,0.60814118,25826.0,25825.0,2.41361029]
[1693605699406,0.163,25826.0,25825.0,2.82498952]
[1693605699701,0.163,25826.0,25825.0,3.18373919]
[1693605699899,0.1048697,25826.0,25825.0,3.18373919]
[1693605702306,0.09663892,25826.0,25825.0,3.18373919]
[1693605703610,0.09663892,25826.0,25825.0,2.98999083]
[1693605705814,0.09663892,25826.0,25825.0,2.96999083]
[1693605706505,0.09663892,25826.0,25825.0,3.12485886]
[1693605707006,0.95603292,25826.0,25825.0,1.62615238]
[1693605707316,0.95603292,25826.0,25825.0,1.74230593]
[1693605708212,0.95603292,25826.0,25825.0,1.8554027]
[1693605711516,0.95603292,25826.0,25825.0,1.96478084]
[1693605712621,0.95603292,25826.0,25825.0,1.74230593]
[1693605712916,1.2758981,25826.0,25825.0,0.037]
[1693605713120,0.00386,25825.0,25824.0,0.07744233]
[1693605713315,1.59897918,25825.0,25823.0,0.07744784]
[1693605713515,1.59897918,25825.0,25822.0,0.11615355]
[1693605713516,0.00386,25823.0,25822.0,0.07745027]
[1693605713822,1.00474,25823.0,25822.0,1.19384308]
[1693605714021,1.02474,25823.0,25822.0,1.19384308]
[1693605714218,0.879445,25823.0,25822.0,1.62974308]
[1693605714418,0.31445,25823.0,25822.0,2.23344636]
[1693605714610,0.31745,25823.0,25822.0,2.27044636]
[1693605714813,0.31745,25823.0,25822.0,2.49292127]
[1693605715023,0.31745,25823.0,25822.0,2.38354313]
[1693605715210,0.32045,25823.0,25822.0,2.42054313]